lending/lending_fUSD_20251111
["ID","MTS","AMOUNT","RATE_DAILY","PERIOD"]
[393635591,1762869752801,-151.0,0.00039912,120]
[393635592,1762869752829,-1107.82577,0.00039912,120]
[393635593,1762869752857,-151.0,0.00039912,120]
[393635594,1762869752885,-1107.82577,0.00039912,120]
[393635595,1762869752914,-151.0,0.00039912,120]
[393635596,1762869752943,-151.0,0.00039912,120]
[393635597,1762869752975,-151.0,0.00039912,120]
[393635598,1762869753004,-151.0,0.00039912,120]
[393635599,1762869753035,-1107.82577,0.00039912,120]
[393635600,1762869753065,-151.0,0.00039912,120]
[393635601,1762869753094,-151.0,0.00039912,120]
[393635602,1762869753123,-1107.82577,0.00039912,120]
[393635603,1762869753151,-151.0,0.00039912,120]
[393635604,1762869753180,-151.0,0.00039912,120]
[393635605,1762869753207,-249.919254,0.00039912,120]
[393635606,1762869753237,-151.0,0.00039912,120]
[393635607,1762869753270,-1107.82577,0.00039912,120]
[393635608,1762869753299,-151.0,0.00039912,120]
[393635609,1762869753328,-1107.82577,0.00039912,120]
[393635610,1762869753571,-1107.82577,0.00039912,120]
[393635611,1762869753609,-1107.82577,0.00039912,120]
[393635612,1762869753641,-1107.82577,0.00039912,120]
[393635613,1762869753672,-151.0,0.00039912,120]
[393635614,1762869753705,-1107.82577,0.00039912,120]
[393635615,1762869753739,-1107.82577,0.00039912,120]
[393635616,1762869753770,-151.0,0.00039912,120]
[393635617,1762869753799,-154.022082,0.00039912,120]
[393635618,1762869753829,-1107.82577,0.00039912,120]
[393635619,1762869753859,-1107.82577,0.00039912,120]
[393635620,1762869753889,-1107.82577,0.00039912,120]
[393635621,1762869753919,-1107.825767,0.00039912,120]
[393635622,1762869753947,-151.0,0.00039912,120]
[393635623,1762869753978,-151.0,0.00039912,120]
[393635624,1762869754009,-151.0,0.00039912,120]
[393635625,1762869754039,-151.0,0.00039912,120]
[393635626,1762869754070,-155.669049,0.00039912,120]
[393635627,1762869754100,-151.0,0.00039912,120]
[393635629,1762869754134,-151.0,0.00039912,120]
[393635630,1762869754162,-151.0,0.00039912,120]
[393635631,1762869754189,-151.0,0.00039912,120]
[393635632,1762869754218,-296.039985,0.00039912,120]
[393635633,1762869754245,-151.0,0.00039912,120]
[393635634,1762869754273,-151.0,0.00039912,120]
[393635635,1762869754301,-151.0,0.00039912,120]
[393635636,1762869754330,-238.651078,0.00039912,120]
[393635637,1762869754364,-151.0,0.00039912,120]
[393635638,1762869754403,-151.0,0.00039912,120]
[393635639,1762869754441,-151.0,0.00039912,120]
[393635640,1762869754479,-151.0,0.00039912,120]
[393635641,1762869754517,-151.0,0.00039912,120]
[393635642,1762869754549,-151.0,0.00039912,120]
[393635643,1762869754580,-151.0,0.00039912,120]
[393635644,1762869754612,-151.0,0.00039912,120]
[393635645,1762869754643,-151.0,0.00039912,120]
[393635646,1762869754674,-151.0,0.00039912,120]
[393635647,1762869754708,-151.0,0.00039912,120]
[393635648,1762869754744,-153.470548,0.00039912,120]
[393635649,1762869754776,-151.0,0.00039912,120]
[393635650,1762869754808,-151.0,0.00039912,120]
[393635651,1762869754839,-151.0,0.00039912,120]
[393635652,1762869754870,-273.66202,0.00039912,120]
[393635653,1762869754903,-151.0,0.00039912,60]
[393635654,1762869754935,-151.0,0.00039912,120]
[393635655,1762869754973,-151.0,0.00039912,60]
[393635656,1762869755016,-151.0,0.00039912,120]
[393635657,1762869755050,-151.0,0.00039912,120]
[393635658,1762869755085,-151.0,0.00039912,120]
[393635659,1762869755118,-153.612012,0.00039912,120]
[393635660,1762869755150,-151.0,0.00039912,120]
[393635661,1762869755182,-151.0,0.00039912,120]
[393635662,1762869755218,-152.956912,0.00039912,120]
[393635663,1762869755254,-151.0,0.00039912,120]
[393635664,1762869755287,-151.0,0.00039912,120]
[393635665,1762869755320,-151.0,0.00039912,120]
[393635666,1762869755354,-151.0,0.00039912,120]
[393635667,1762869755387,-252.444967,0.00039912,120]
[393635668,1762869755418,-159.665485,0.00039912,120]
[393635669,1762869755451,-151.0,0.00039912,120]
[393635670,1762869755482,-151.0,0.00039912,120]
[393635671,1762869755519,-151.0,0.00039912,120]
[393635672,1762869755553,-151.0,0.00039912,120]
[393635673,1762869755587,-151.0,0.00039912,120]
[393635674,1762869755625,-151.0,0.00039912,120]
[393635675,1762869755658,-154.870085,0.00039912,120]
[393635676,1762869755692,-151.0,0.00039912,120]
[393635677,1762869755746,-600.0,0.00043836,35]
[393635678,1762869755781,-151.0,0.00044997,120]
[393635679,1762869755817,-54086.38665003,0.00045,120]
[393635680,1762869755852,-1000000.0,0.00045,120]
[393635681,1762869755888,-1000000.0,0.00045,120]
[393635682,1762869755924,-1000000.0,0.00045,120]
[393635683,1762869755963,-1000000.0,0.00045,120]
[393635684,1762869756004,-907007.40418097,0.00045,120]
[393635686,1762869760486,-151.0,0.00039912,120]
[393635687,1762869760518,-153.801165,0.00039912,120]
[393635688,1762869760549,-151.501004,0.00039912,120]
[393635689,1762869760596,-92992.59581903,0.00045,120]
[393635690,1762869760629,-1000000.0,0.00045,120]
[393635691,1762869760660,-1000000.0,0.00045,120]
[393635692,1762869760691,-1000000.0,0.00045,120]
[393635693,1762869760724,-1000000.0,0.00045,120]
[393635694,1762869760756,-906551.10201197,0.00045,120]
[393635697,1762869764710,-93448.89798803,0.00045,120]
[393635698,1762869764745,-1000000.0,0.00045,120]
[393635699,1762869764942,-1000000.0,0.00045,120]
[393635700,1762869764982,-1000000.0,0.00045,120]
[393635701,1762869765019,-1000000.0,0.00045,120]
[393635702,1762869765055,-213.72379156,0.00045,120]
[393635703,1762869765089,-3889.0,0.00045,120]
[393635704,1762869765120,-250.0,0.00045,60]
[393635705,1762869765152,-2452.83095906,0.00045,120]
[393635706,1762869765182,-978.5295516,0.00045,120]
[393635707,1762869765211,-415.0,0.00045,120]
[393635708,1762869765241,-507.87320782,0.00045,120]
[393635709,1762869765272,-1037.83,0.00045,120]
[393635710,1762869765301,-472.4488933,0.00045,120]
[393635711,1762869765332,-156.9,0.00045,85]
[393635712,1762869765362,-304.72167451,0.00045,120]
[393635713,1762869765392,-167.85193,0.00045,60]
[393635714,1762869765422,-160.276718,0.00045,60]
[393635715,1762869765454,-191.005916,0.00045,60]
[393635716,1762869765484,-174.29793,0.00045,60]
[393635717,1762869765515,-161.665604,0.00045,60]
[393635718,1762869765546,-166.144097,0.00045,60]
[393635719,1762869765578,-160.878442,0.00045,60]
[393635720,1762869765610,-161.665604,0.00045,60]
[393635721,1762869765641,-234.893951,0.00045,60]
[393635722,1762869765671,-152.967964,0.00045,60]
[393635724,1762869765701,-170.393884,0.00045,60]
[393635725,1762869765733,-150.0,0.00045,120]
[393635726,1762869765764,-150.0,0.00045,120]
[393635727,1762869765794,-150.0,0.00045,120]
[393635728,1762869765824,-420.0,0.00045,120]
[393635729,1762869765853,-215.0,0.00045,37]
[393635730,1762869765882,-200.0,0.00045014,120]
[393635731,1762869765913,-171.31067576,0.000452,120]
[393635732,1762869765943,-1048.12,0.00045233,30]
[393635733,1762869765978,-1048.12,0.00045233,30]
[393635734,1762869766009,-103341.8377,0.00045444,30]
[393635735,1762869766039,-153.0,0.000455,120]
[393635736,1762869766074,-282557.0,0.000455,120]
[393635737,1762869766104,-1048.12,0.00045507,30]
[393635738,1762869766133,-1048.12,0.00045507,30]
[393635739,1762869766161,-813.42728962,0.00045543,120]
[393635740,1762869766190,-352.74612924,0.000456,120]
[393635741,1762869766218,-626.04525369,0.000457,120]
[393635742,1762869766250,-1048.12,0.00045781,30]
[393635743,1762869766279,-1048.12,0.00045781,30]
[393635744,1762869766306,-10936.53073536,0.000458,120]
[393635745,1762869766337,-1991.54550923,0.000459,120]
[393635746,1762869766368,-151.0,0.00045997,120]
[393635747,1762869766397,-2037.46553385,0.00046,120]
[393635748,1762869766425,-204.18920925,0.00046,30]
[393635749,1762869766453,-3213.3798251,0.00046,30]
[393635750,1762869766482,-349.32148534,0.00046,90]
[393635751,1762869766510,-150.0,0.00046,120]
[393635752,1762869766539,-705.98229328,0.00046,120]
[393635753,1762869766571,-478641.7002544,0.00046,120]
[393635754,1762869769967,-151.0,0.00039912,120]
[393635755,1762869770003,-151.0,0.00039912,120]
[393635756,1762869770036,-151.0,0.00039912,120]
[393635757,1762869770067,-151.0,0.00039912,120]
[393635758,1762869770096,-151.0,0.00039912,120]
[393635759,1762869770136,-116114.4244,0.00043444,30]
[393635760,1762869770167,-246.87,0.0004475,120]
[393635761,1762869770196,-384.0590399,0.0004475,120]
[393635762,1762869770228,-103341.8377,0.00045444,30]
[393635763,1762869770277,-521358.2997456,0.00046,120]
[393635764,1762869770308,-1000000.0,0.00046,120]
[393635765,1762869770339,-1000000.0,0.00046,120]
[393635766,1762869770370,-1000000.0,0.00046,120]
[393635767,1762869770399,-1000000.0,0.00046,120]
[393635768,1762869770433,-257799.5091145,0.00046,120]
[393635769,1762869773144,-151.0,0.00039912,120]
[393635770,1762869773190,-742200.4908855,0.00046,120]
[393635771,1762869773225,-1000000.0,0.00046,120]
[393635772,1762869773256,-7085.32948927,0.00046,120]
[393635773,1762869773285,-200.0,0.00046,120]
[393635774,1762869773314,-704.61698651,0.00046,120]
[393635775,1762869773343,-67847.40525587,0.00046,30]
[393635776,1762869773371,-1328.91810946,0.00046,120]
[393635777,1762869773399,-1032.5134031,0.00046,120]
[393635778,1762869773428,-205.48,0.00046,30]
[393635779,1762869773457,-200.0,0.00046014,120]
[393635780,1762869773487,-1048.12,0.00046055,30]
[393635781,1762869773671,-1048.12,0.00046055,30]
[393635782,1762869773704,-155.0,0.000461,120]
[393635783,1762869773735,-163.8952416,0.0004613,120]
[393635784,1762869773767,-153.0,0.000462,120]
[393635785,1762869773799,-3000.0,0.000462,120]
[393635786,1762869773831,-1048.12,0.00046329,30]
[393635787,1762869773862,-1048.12,0.00046329,30]
[393635788,1762869773892,-259.03072808,0.000464,120]
[393635789,1762869773937,-1444.0,0.00046466,120]
[393635790,1762869773975,-151.0,0.00046497,120]
[393635791,1762869774013,-1000000.0,0.000465,120]
[393635792,1762869774048,-1000000.0,0.000465,120]
[393635793,1762869774084,-1000000.0,0.000465,120]
[393635794,1762869774121,-169525.83990061,0.000465,120]
[393635795,1762869776167,-830474.16009939,0.000465,120]
[393635796,1762869776202,-1000000.0,0.000465,120]
[393635797,1762869776235,-1000000.0,0.000465,120]
[393635798,1762869776265,-1000000.0,0.000465,120]
[393635799,1762869776296,-1000000.0,0.000465,120]
[393635800,1762869776326,-169525.83990061,0.000465,120]
[393635801,1762869783146,-151.0,0.00039912,120]
[393635802,1762869783177,-151.0,0.00039912,120]
[393635803,1762869783207,-151.0,0.00039912,120]
[393635804,1762869783239,-151.0,0.00039912,120]
[393635805,1762869783284,-2152.16009939,0.000465,120]
[393635806,1762869783315,-150.0,0.00046579,30]
[393635807,1762869783346,-150.0,0.00046579,30]
[393635808,1762869783375,-150.0,0.00046579,30]
[393635809,1762869783406,-150.0,0.00046579,30]
[393635810,1762869783436,-150.0,0.00046579,30]
[393635811,1762869783467,-150.0,0.00046579,30]
[393635812,1762869783499,-150.0,0.00046579,30]
[393635813,1762869783530,-150.0,0.00046579,30]
[393635814,1762869783563,-150.0,0.00046579,30]
[393635815,1762869783595,-150.0,0.00046579,30]
[393635816,1762869783626,-150.0,0.00046579,30]
[393635817,1762869783657,-150.0,0.00046579,30]
[393635818,1762869783687,-150.0,0.00046579,30]
[393635819,1762869783716,-150.0,0.00046579,30]
[393635820,1762869783745,-150.0,0.00046579,30]
[393635821,1762869783775,-150.0,0.00046579,30]
[393635822,1762869783804,-150.0,0.00046579,30]
[393635823,1762869783832,-150.0,0.00046579,30]
[393635824,1762869783860,-164.62679474,0.00046579,30]
[393635825,1762869783891,-1048.12,0.00046603,30]
[393635826,1762869783921,-1048.12,0.00046603,30]
[393635827,1762869783951,-150.0,0.00046636,30]
[393635828,1762869783984,-150.0,0.00046659,30]
[393635829,1762869784014,-150.0,0.00046659,30]
[393635830,1762869784047,-150.0,0.0004666,30]
[393635831,1762869784078,-150.0,0.00046667,30]
[393635832,1762869784108,-150.0,0.00046685,30]
[393635833,1762869784138,-150.0,0.00046693,30]
[393635834,1762869784167,-150.0,0.00046706,30]
[393635835,1762869784195,-150.0,0.00046739,30]
[393635836,1762869784223,-150.0,0.00046739,30]
[393635837,1762869784252,-150.0,0.00046741,30]
[393635838,1762869784280,-100000.0,0.00046749,30]
[393635839,1762869784310,-150.0,0.0004675,30]
[393635840,1762869784338,-150.0,0.00046755,30]
[393635841,1762869784368,-150.0,0.00046771,30]
[393635842,1762869784400,-368.1550526,0.0004679,90]
[393635843,1762869784432,-150.0,0.00046791,30]
[393635844,1762869784465,-530.71143969,0.000468,120]
[393635845,1762869784496,-150.0,0.00046807,30]
[393635846,1762869784528,-150.0,0.00046818,30]
[393635847,1762869784562,-150.0,0.00046818,30]
[393635848,1762869784594,-150.0,0.00046822,30]
[393635849,1762869784626,-150.0,0.00046832,30]
[393635850,1762869784657,-150.0,0.00046843,30]
[393635851,1762869784688,-150.0,0.00046852,30]
[393635852,1762869784718,-150.0,0.00046864,30]
[393635853,1762869784750,-150.0,0.00046884,30]
[393635854,1762869784781,-150.0,0.00046896,30]
[393635855,1762869784812,-150.0,0.00046898,30]
[393635856,1762869784842,-150.0,0.00046898,30]
[393635857,1762869784872,-1233.90868382,0.000469,120]
[393635858,1762869785048,-153.0,0.000469,120]
[393635859,1762869785081,-150.0,0.00046903,30]
[393635860,1762869785112,-150.0,0.00046921,30]
[393635861,1762869785143,-150.0,0.0004693,30]
[393635862,1762869785172,-150.0,0.00046958,30]
[393635863,1762869785201,-150.0,0.00046963,30]
[393635864,1762869785230,-150.0,0.00046978,30]
[393635865,1762869785260,-150.0,0.00046978,30]
[393635866,1762869785290,-150.0,0.00046978,30]
[393635867,1762869785319,-211.0,0.0004698,30]
[393635868,1762869785347,-211.0,0.0004698,30]
[393635869,1762869785377,-211.0,0.0004698,30]
[393635870,1762869785406,-150.0,0.00046984,30]
[393635871,1762869785436,-445.0,0.00046986,120]
[393635872,1762869785464,-151.0,0.00046997,120]
[393635873,1762869785500,-611.0,0.00047,30]
[393635874,1762869785532,-1000000.0,0.00047,120]
[393635875,1762869785565,-1000000.0,0.00047,120]
[393635876,1762869785596,-1000000.0,0.00047,120]
[393635877,1762869785626,-1000000.0,0.00047,120]
[393635878,1762869785654,-150.0,0.00047,120]
[393635879,1762869785681,-1000.0,0.00047,120]
[393635880,1762869785710,-1000000.0,0.00047,120]
[393635881,1762869785744,-1000000.0,0.00047,120]
[393635882,1762869785776,-1000000.0,0.00047,120]
[393635883,1762869785808,-1000000.0,0.00047,120]
[393635884,1762869785839,-1000000.0,0.00047,120]
[393635885,1762869785870,-3889.0,0.00047,120]
[393635886,1762869785899,-179.32773072,0.00047,120]
[393635887,1762869785928,-340.43000964,0.00047,120]
[393635888,1762869785956,-2500.0,0.00047,120]
[393635889,1762869785993,-1377.0,0.00047,120]
[393635890,1762869786021,-150.0,0.00047002,30]
[393635891,1762869786052,-150.0,0.00047011,30]
[393635892,1762869786081,-200.0,0.00047014,120]
[393635893,1762869786111,-150.0,0.00047018,30]
[393635894,1762869786139,-150.0,0.00047034,30]
[393635895,1762869786168,-150.0,0.00047036,120]
[393635896,1762869786198,-150.0,0.00047057,30]
[393635897,1762869786227,-150.0,0.00047057,30]
[393635898,1762869786255,-150.0,0.00047065,30]
[393635899,1762869786284,-150.0,0.00047084,30]
[393635900,1762869786312,-150.0,0.00047091,30]
[393635901,1762869786340,-150.0,0.00047097,30]
[393635902,1762869786369,-155.0,0.000471,120]
[393635903,1762869786398,-150.0,0.00047106,30]
[393635904,1762869786425,-150.0,0.00047108,30]
[393635905,1762869786454,-150.0,0.00047124,30]
[393635906,1762869786485,-150.0,0.00047137,30]
[393635907,1762869786518,-150.0,0.00047137,30]
[393635908,1762869786550,-150.0,0.00047146,30]
[393635909,1762869786585,-150.0,0.00047148,30]
[393635910,1762869786617,-150.0,0.00047155,30]
[393635911,1762869786650,-150.0,0.00047155,30]
[393635912,1762869786681,-150.0,0.00047188,30]
[393635913,1762869786712,-150.0,0.00047194,30]
[393635914,1762869786744,-3000.0,0.000472,120]
[393635915,1762869786774,-150.0,0.00047205,30]
[393635916,1762869786802,-150.0,0.00047211,30]
[393635917,1762869786830,-150.0,0.00047213,30]
[393635918,1762869786859,-150.0,0.00047216,30]
[393635919,1762869786889,-150.0,0.00047216,30]
[393635920,1762869786918,-150.0,0.00047226,30]
[393635921,1762869786947,-150.0,0.00047262,30]
[393635922,1762869786982,-150.0,0.00047281,30]
[393635923,1762869787013,-150.0,0.00047296,30]
[393635924,1762869787043,-150.0,0.00047296,30]
[393635925,1762869787072,-475.11,0.000473,120]
[393635926,1762869787100,-150.0,0.00047307,30]
[393635927,1762869787132,-204.90702621,0.00047308,120]
[393635928,1762869787160,-150.0,0.00047319,30]
[393635929,1762869787189,-150.0,0.00047319,30]
[393635930,1762869787217,-150.0,0.00047337,30]
[393635931,1762869787245,-150.0,0.00047346,30]
[393635932,1762869787272,-150.0,0.00047369,30]
[393635933,1762869787301,-150.0,0.00047376,30]
[393635934,1762869787328,-150.0,0.00047376,30]
[393635935,1762869787355,-150.0,0.00047376,30]
[393635936,1762869787383,-150.0,0.00047388,30]
[393635937,1762869787412,-150.0,0.00047397,30]
[393635938,1762869787440,-150.0,0.00047424,30]
[393635939,1762869787467,-150.0,0.00047433,30]
[393635940,1762869787496,-150.0,0.00047442,30]
[393635941,1762869787524,-150.0,0.00047442,30]
[393635942,1762869787555,-81280.097,0.00047444,30]
[393635943,1762869787586,-12661.8699,0.00047444,30]
[393635944,1762869787616,-150.0,0.00047455,30]
[393635945,1762869787647,-150.0,0.00047455,30]
[393635946,1762869787689,-150.0,0.00047457,30]
[393635947,1762869787720,-150.0,0.00047461,120]
[393635948,1762869787750,-150.0,0.00047463,30]
[393635949,1762869787780,-150.0,0.00047469,30]
[393635950,1762869787810,-150.0,0.00047489,30]
[393635951,1762869787838,-150.0,0.00047493,30]
[393635952,1762869787866,-151.0,0.00047497,120]
[393635953,1762869788024,-766943.45626319,0.000475,120]
[393635954,1762869792659,-151.0,0.00039912,120]
[393635955,1762869792692,-151.0,0.00039912,120]
[393635956,1762869792728,-151.0,0.00039912,120]
[393635957,1762869792761,-152.979888,0.00039912,120]
[393635958,1762869792808,-306.63428446,0.0004575,120]
[393635959,1762869792843,-233056.54373681,0.000475,120]
[393635960,1762869792873,-1000000.0,0.000475,120]
[393635961,1762869792902,-150.0,0.0004753,30]
[393635962,1762869792931,-150.0,0.00047535,30]
[393635963,1762869792959,-150.0,0.00047535,30]
[393635964,1762869792991,-150.0,0.00047538,30]
[393635965,1762869793020,-150.0,0.00047544,30]
[393635966,1762869793049,-150.0,0.00047546,30]
[393635967,1762869793080,-150.0,0.0004755,30]
[393635968,1762869793110,-150.0,0.00047589,30]
[393635969,1762869793140,-150.0,0.00047603,30]
[393635970,1762869793169,-150.0,0.00047615,30]
[393635971,1762869793199,-150.0,0.00047615,30]
[393635972,1762869793233,-150.0,0.00047615,30]
[393635973,1762869793264,-150.0,0.00047631,30]
[393635974,1762869793295,-150.0,0.00047632,30]
[393635975,1762869793324,-150.0,0.00047636,30]
[393635976,1762869793356,-150.0,0.0004766,30]
[393635977,1762869793388,-150.0,0.00047669,30]
[393635978,1762869793419,-150.0,0.00047694,30]
[393635979,1762869793450,-150.0,0.00047694,30]
[393635980,1762869793481,-153.0,0.000477,120]
[393635981,1762869793516,-150.0,0.00047712,30]
[393635982,1762869793549,-150.0,0.00047716,30]
[393635983,1762869793584,-150.0,0.00047717,30]
[393635984,1762869793616,-150.0,0.00047717,120]
[393635985,1762869793645,-150.0,0.0004772,30]
[393635986,1762869793675,-150.0,0.0004773,30]
[393635987,1762869793705,-150.0,0.0004773,30]
[393635988,1762869793734,-150.0,0.00047741,30]
[393635989,1762869793767,-150.0,0.00047754,120]
[393635990,1762869793801,-150.0,0.00047774,30]
[393635991,1762869793831,-150.0,0.00047774,30]
[393635992,1762869793860,-150.0,0.00047774,30]
[393635993,1762869793890,-150.0,0.00047793,30]
[393635994,1762869793921,-150.0,0.00047797,30]
[393635995,1762869793952,-150.0,0.00047808,30]
[393635996,1762869793987,-150.0,0.00047831,30]
[393635997,1762869794021,-150.0,0.00047842,30]
[393635998,1762869794055,-150.0,0.00047847,30]
[393635999,1762869794088,-150.0,0.00047853,30]
[393636000,1762869794119,-150.0,0.00047853,30]
[393636001,1762869794148,-150.0,0.00047873,30]
[393636002,1762869794177,-150.0,0.00047873,30]
[393636003,1762869794205,-150.0,0.00047873,30]
[393636004,1762869794233,-1124.91125909,0.0004788,100]
[393636005,1762869794263,-150.0,0.00047888,30]
[393636006,1762869794291,-2875.08696264,0.0004789,120]
[393636007,1762869794321,-150.0,0.00047895,30]
[393636008,1762869794365,-150.0,0.00047921,30]
[393636009,1762869794398,-150.0,0.00047933,30]
[393636010,1762869794428,-150.0,0.00047933,30]
[393636011,1762869794458,-150.0,0.00047941,30]
[393636012,1762869794489,-150.0,0.00047944,30]
[393636013,1762869794521,-2000.0,0.00047945,120]
[393636014,1762869794552,-2000.0,0.00047945,120]
[393636015,1762869794582,-2000.0,0.00047945,120]
[393636016,1762869794613,-2000.0,0.00047945,120]
[393636017,1762869794644,-2000.0,0.00047945,120]
[393636018,1762869794676,-2000.0,0.00047945,120]
[393636019,1762869794709,-2000.0,0.00047945,120]
[393636020,1762869794747,-2000.0,0.00047945,120]
[393636021,1762869794780,-2000.0,0.00047945,120]
[393636022,1762869794814,-2000.0,0.00047945,120]
[393636023,1762869794845,-178.0,0.00047945,120]
[393636024,1762869795094,-150.0,0.00047953,30]
[393636025,1762869795127,-150.0,0.00047954,30]
[393636026,1762869795158,-150.0,0.00047968,30]
[393636027,1762869795188,-150.0,0.00047983,30]
[393636028,1762869795218,-151.0,0.00047997,120]
[393636029,1762869795249,-151.0,0.00047997,120]
[393636030,1762869795277,-1700.11493944,0.00048,120]
[393636031,1762869795306,-229.15190603,0.00048,120]
[393636032,1762869795334,-2991.80393878,0.00048,120]
[393636033,1762869795363,-483.69933236,0.00048,120]
[393636034,1762869795396,-1000000.0,0.00048,120]
[393636035,1762869795428,-1000000.0,0.00048,120]
[393636036,1762869795457,-150.0,0.00048,120]
[393636037,1762869795489,-200.0,0.00048,120]
[393636038,1762869795523,-300.0,0.00048,120]
[393636039,1762869795554,-10000.0,0.00048,120]
[393636040,1762869795585,-1328.91810946,0.00048,120]
[393636041,1762869795616,-1032.5134031,0.00048,120]
[393636042,1762869795646,-1632.00535129,0.00048,30]
[393636043,1762869795676,-150.0,0.00048,120]
[393636044,1762869795706,-150.0,0.00048,120]
[393636045,1762869795737,-150.0,0.00048,120]
[393636046,1762869795773,-404.019561,0.00048,120]
[393636047,1762869795803,-150.0,0.00048001,30]
[393636048,1762869795833,-150.0,0.00048013,30]
[393636049,1762869795861,-150.0,0.00048013,30]
[393636050,1762869795889,-200.0,0.00048014,120]
[393636051,1762869795918,-150.0,0.00048035,30]
[393636052,1762869795948,-150.0,0.00048058,30]
[393636053,1762869795980,-150.0,0.00048058,30]
[393636054,1762869796012,-150.0,0.00048071,30]
[393636055,1762869796047,-150.0,0.00048092,30]
[393636056,1762869796076,-150.0,0.00048092,30]
[393636057,1762869796107,-150.0,0.00048094,30]
[393636058,1762869796136,-155.0,0.000481,120]
[393636059,1762869796164,-150.0,0.00048102,30]
[393636060,1762869796193,-150.0,0.00048113,30]
[393636061,1762869796222,-150.0,0.00048115,30]
[393636062,1762869796251,-150.0,0.00048116,30]
[393636063,1762869796279,-150.0,0.00048132,30]
[393636064,1762869796308,-150.0,0.00048158,30]
[393636065,1762869796337,-150.0,0.00048164,30]
[393636066,1762869796369,-150.0,0.00048172,30]
[393636067,1762869796400,-150.0,0.00048172,30]
[393636068,1762869796431,-150.0,0.00048172,30]
[393636069,1762869796463,-1336.7,0.00048184,120]
[393636070,1762869796495,-150.0,0.00048197,30]
[393636071,1762869796527,-3000.0,0.000482,120]
[393636072,1762869796557,-150.0,0.00048214,30]
[393636073,1762869796588,-500.0,0.00048219,120]
[393636074,1762869796619,-500.0,0.00048219,120]
[393636075,1762869796648,-500.0,0.00048219,120]
[393636076,1762869796677,-500.0,0.00048219,120]
[393636077,1762869796707,-311.96832469,0.00048219,120]
[393636078,1762869796736,-150.0,0.00048221,30]
[393636079,1762869796768,-150.0,0.00048229,30]
[393636080,1762869796798,-150.0,0.00048246,30]
[393636081,1762869796830,-150.0,0.00048252,30]
[393636082,1762869796861,-150.0,0.00048252,30]
[393636083,1762869796891,-150.0,0.00048269,30]
[393636084,1762869796922,-150.0,0.00048278,30]
[393636085,1762869796952,-150.0,0.00048286,30]
[393636086,1762869796984,-449.61,0.000483,90]
[393636087,1762869797015,-150.0,0.00048305,30]
[393636088,1762869797045,-150.0,0.00048305,30]
[393636089,1762869797076,-150.0,0.00048305,30]
[393636090,1762869797104,-150.0,0.00048305,30]
[393636091,1762869797132,-150.0,0.00048305,30]
[393636092,1762869797161,-150.0,0.00048331,30]
[393636093,1762869797190,-150.0,0.00048331,30]
[393636094,1762869797218,-150.0,0.00048334,30]
[393636095,1762869797248,-150.0,0.00048343,30]